Cogmind - Beta 17 @@@ ROGUE MODE // 2026.07.14 @ 18:36:38 Player: Conwew Result: Destroyed by S-27 Virus with Autogun Performance ------------- Evolutions (5) 2500 Regions Visited (7) 1400 Robots Destroyed (74) 370 Value Destroyed (3171) 3171 Prototype IDs (14) 280 Alien Tech Used (0) 0 Bonus (1080) 1080 TOTAL SCORE: 8801 Bonus ------- High Alert Combat Kills 100 Follower Combat Kills 205 Registered with UFD 300 Met Optimus in HQ 500 Friendly Fire -25 Cogmind --------- Core Integrity 0/1000 Matter 300/300 Energy 220/220 System Corruption 6% Temperature Cool (0) Movement Walking (120) Location -5/Factory Parts ------- > --- POWER (2) -------- Light Angular Momentum Engine Light Antimatter Reactor > --- PROPULSION (4) --- Carbon-fiber Leg Carbon-fiber Leg Carbon-fiber Leg Carbon-fiber Leg > --- UTILITY (7) ------ Advanced Heat Sink Enhanced Optical Array Advanced Targeting Computer Advanced Targeting Computer A0-MCA's Component Scanner > --- WEAPON (4) ------- Heavy Laser Autogun KE Penetrator Enhanced Coil Gun > --- INVENTORY (5) ---- Improved Sensor Array Advanced Signal Interpreter System Restoration Module DRS Beacon (Ready) Peak State ------------ > --- POWER ------------ Light Angular Momentum Engine Reinforced Fission Core > --- PROPULSION ------- Carbon-fiber Leg Carbon-fiber Leg Improved VSS Leg Advanced VSS Leg > --- UTILITY ---------- Advanced Heat Sink Advanced Cooling System Enhanced Optical Array Advanced Targeting Computer Advanced Targeting Computer Advanced Targeting Computer A0-MCA's Component Scanner > --- WEAPON ----------- Hypervelocity Coil Gun Hypervelocity Coil Gun Hypervelocity Coil Gun Mass Driver > --- INVENTORY -------- Improved Sensor Array Advanced Signal Interpreter Hypervelocity Coil Gun Improved Datajack DRS Beacon [Rating: 89] Favorites ----------- Power Light Deuterium Engine Engine Light Deuterium Engine Power Core Reinforced Fission Core Reactor Light Antimatter Reactor Propulsion Light Treads Treads Light Treads Leg Carbon-fiber Leg Flight Unit Xenon Bombardment Thruster Utility Advanced Targeting Computer Device Improved Heat Sink Processor Advanced Targeting Computer Protection Hardened Medium Armor Plating Weapon Small Laser Energy Gun Small Laser Energy Cannon Phase Cannon Ballistic Gun Precision Assault Rifle Ballistic Cannon Magnetic Acceleration Cannon Slashing Weapon Falx Piercing Weapon Heavy Pick Build | -11 -10 -10 -10 -8 -8 -6 -5 ------- Run | Yrd Mat Min Sub Rec Scr Fac Fac Slots Evolved 10 | . . . . . . 8 2 Power 1 | . . . . . . 1 . Propulsion 2 | . . . . . . 2 . Utility 5 | . . . . . . 3 2 Weapon 2 | . . . . . . 2 . Parts Attached 92 | 5 1 1 . 3 12 19 51 Power 15 | 1 . 1 . 1 1 2 9 Engine 9 | 1 . 1 . 1 1 2 3 Core 5 | . . . . . . . 5 Reactor 1 | . . . . . . . 1 Propulsion 21 | 2 . . . 2 2 1 14 Treads 8 | 2 . . . 2 2 1 1 Leg 12 | . . . . . . . 12 Wheel . | . . . . . . . . Hover . | . . . . . . . . Flight 1 | . . . . . . . 1 Utility 17 | . 1 . . . 3 7 6 Device 8 | . 1 . . . 1 4 2 Storage . | . . . . . . . . Processor 6 | . . . . . 2 3 1 Hackware . | . . . . . . . . Protection 3 | . . . . . . . 3 Artifact . | . . . . . . . . Weapon 39 | 2 . . . . 6 9 22 Energy Gun 9 | 2 . . . . 2 3 2 Energy Cannon 2 | . . . . . . . 2 Ballistic Gun 22 | . . . . . 4 2 16 Ballistic Cannon 2 | . . . . . . 1 1 Launcher . | . . . . . . . . Special Weapon . | . . . . . . . . Impact Weapon . | . . . . . . . . Slashing Weapon 3 | . . . . . . 3 . Piercing Weapon 1 | . . . . . . . 1 Special Melee Weapon . | . . . . . . . . Unidentified Prototypes . | . . . . . . . . Parts Lost 38 | . . 1 . . 5 . 32 Power 7 | . . 1 . . 1 . 5 Propulsion 11 | . . . . . 1 . 10 Utility 5 | . . . . . 1 . 4 Weapon 15 | . . . . . 2 . 13 Highest Loss Streak 9 | . . 1 . . 5 . 9 To Critical Strikes . | . . . . . . . . Average Backups 3 | . 2 4 5 5 4 3 3 Power . | . . . . . . . . Propulsion . | . . 1 1 1 1 . . Utility 2 | . 1 2 3 2 2 3 2 Weapon . | . . 1 1 1 . . . Tool/Special . | . . . . . . . . Unused Backups 9 | . . . . 1 2 1 5 Power . | . . . . . . . . Propulsion . | . . . . . . . . Utility 8 | . . . . 1 2 1 4 Weapon . | . . . . . . . . Tool/Special 1 | . . . . . . . 1 Average Slot Usage (%) 85 | . 73 84 85 85 86 85 87 Engine 10 | . 14 13 14 14 13 10 5 Treads 19 | . 28 28 28 28 27 17 5 Leg 3 | . . . . . . . 12 Device 9 | . 2 14 14 14 7 5 9 Processor 14 | . . . . . 9 25 28 Energy Gun 16 | . 28 28 28 28 20 10 2 Ballistic Gun 5 | . . . . . 6 4 11 Ballistic Cannon 1 | . . . . . . 5 2 Peak Build Rating 89 | 5 6 6 6 9 25 62 89 Average Rating 33 | 3 5 5 6 7 14 56 70 On Entrance 14 | . 5 6 6 6 9 25 62 Avg Prop Armor Cover (%) . | . . . . . . . . Naked Turns . | . . . . . . . . Heaviest Build 60 | 7 8 8 8 8 12 43 60 Greatest Support 90 | 40 40 40 40 40 40 60 90 Greatest Overweight (x) 7 | 1 . . . . . . 7 Average Overweight (x) . | . . . . . . . . Largest Inventory Capacity 5 | 5 5 5 5 5 5 5 5 Average Capacity 5 | 5 5 5 5 5 5 5 5 Most Carried 5 | . 4 5 5 5 5 5 5 Average Carried 4 | . 2 4 5 4 4 4 4 Final Capacity 5 | 5 5 5 5 5 5 5 5 Final Carried 5 | . 4 5 5 5 5 5 4 Class Distribution -------------------- 38% | Mutant 31% | Scavenger-Gunner 16% | Commander-Mutant 9% | Scavenger-Mutant Dominant Class ---------------- Mutant | -10/Materials Mutant | -10/Mines Mutant | -10/Subcaves Mutant | -8/Recycling Commander-Mutant | -8/Scraptown Scavenger-Gunner | -6/Factory Scavenger-Gunner | -5/Factory Resources | -11 -10 -10 -10 -8 -8 -6 -5 ----------- Run | Yrd Mat Min Sub Rec Scr Fac Fac Matter Collected 2344 | 230 20 20 . 30 109 286 1649 Remotely . | . . . . . . . . Salvage Created 4172 | . 144 306 . 45 168 475 3034 Parts 174 | . 5 12 . 3 8 16 130 Haulers Intercepted 3 | . 1 . . . . . 2 Recyclers Shooed 3 | . . . . . . . 3 Parts Field Recycled . | . . . . . . . . Retrieved Matter . | . . . . . . . . Parts Self-Destructed 1 | . . . 1 . . . . Prevented . | . . . . . . . . Parts Restored . | . . . . . . . . Kills | -11 -10 -10 -10 -8 -8 -6 -5 ------- Run | Yrd Mat Min Sub Rec Scr Fac Fac Combat Hostiles Destroyed 59 | . 2 7 . 1 3 7 39 Guns 43 | . 2 7 . 1 3 2 28 Cannons 15 | . . . . . . 5 10 AOE 1 | . . . . . . . 1 Classes Destroyed 17 | . 2 2 1 1 3 3 5 Builder 1 | . . . . . . . 1 Hauler 3 | . 1 . . . . . 2 Recycler 4 | . . 1 . . . . 3 Mechanic 1 | . . . . . . . 1 Turret 1 | . . . 1 . . . . Watcher 5 | . . . . . . 1 4 Swarmer 13 | . . 3 . . . . 10 Grunt 24 | . 2 4 . . . 4 14 Brawler 1 | . . . . . . . 1 Sentry 4 | . . . . . . 1 3 Demolisher 1 | . . . . 1 . . . Specialist 2 | . . . . . . . 2 Programmer 10 | . . . . . . 2 8 Heavy 1 | . . . . . . . 1 Explorer 1 | . . . . . 1 . . Ranger 1 | . . . . . 1 . . Scrapper 1 | . . . . . 1 . . Best Kill Streak 10 | . 2 5 1 1 1 5 10 Combat Bots Only 8 | . 2 5 . 1 1 4 8 Max Kills in Single Turn 2 | . 1 1 1 1 1 1 2 Gunslinging . | . . . . . . . . Exploded 1 | . . . . . . . 1 Melee . | . . . . . . . . Uniques/NPCs Destroyed . | . . . . . . . . Combat | -11 -10 -10 -10 -8 -8 -6 -5 -------- Run | Yrd Mat Min Sub Rec Scr Fac Fac Hostile Shots Fired 554 | . 15 40 9 4 49 36 401 Missed 171 | . 2 11 4 1 13 16 124 Hits 383 | . 13 29 5 3 36 20 277 Melee 1 | . . . . . 1 . . Projectile 382 | . 13 29 5 3 35 20 277 AOE 3 | . . . . . . . 3 Critical Strikes 10 | . . . . . 1 . 9 Damage Taken 7474 | . 187 309 15 46 528 313 6076 Core 1269 | . 70 55 . . 98 37 1009 Absorbed by Shields 75 | . . . . . 75 . . Core Remaining (%) 68 | 100 . . . . 10 95 . Volleys Fired 175 | . 14 25 4 6 15 13 98 Largest 4 | . 2 2 2 2 2 4 4 Hottest 234 | . 80 80 80 80 126 234 226 Shots Fired 492 | . 25 50 8 12 27 48 322 Gun 407 | . 25 50 8 12 27 35 250 Cannon 85 | . . . . . . 13 72 Launcher . | . . . . . . . . Special . | . . . . . . . . Kinetic 279 | . . . . . 9 17 253 Thermal 192 | . 25 50 8 12 18 13 66 Explosive . | . . . . . . . . Electromagnetic 21 | . . . . . . 18 3 Robot Hit Streak 19 | . 13 11 7 5 12 13 19 Robot Miss Streak 4 | . 1 2 2 4 4 3 3 Penetration Max 3 | . . . . . 1 . 3 Secondary Targets 7 | . . . . . 2 . 5 Max Gunslinging Chain 1 | . . . . . 1 . 1 Shots Hit Robots 365 | . 22 33 3 6 19 37 245 Core Hits 161 | . 7 14 1 3 8 17 111 Critical Kills 15 | . . . . . . 1 14 Critical Parts Destroyed 21 | . . . . . . 1 20 Critical Strikes 40 | . . . . . 1 2 37 Burn 1 | . . . . . 1 . . Destroy 38 | . . . . . . 2 36 Blast 1 | . . . . . . . 1 Melee Attacks . | . . . . . . . . Impact . | . . . . . . . . Slashing . | . . . . . . . . Piercing . | . . . . . . . . Sneak Attacks . | . . . . . . . . Combat Hostiles . | . . . . . . . . Follow-up Attacks . | . . . . . . . . Damage Inflicted 7397 | . 240 368 31 69 338 939 5412 Guns 5162 | . 240 368 31 69 338 638 3478 Cannons 2166 | . . . . . . 301 1865 Explosions 38 | . . . . . . . 38 Melee . | . . . . . . . . Ramming 31 | . . . . . . . 31 Kinetic 4344 | . . . . . 62 398 3884 Thermal 2762 | . 240 368 31 69 276 290 1488 Explosive . | . . . . . . . . Electromagnetic 260 | . . . . . . 251 9 Impact . | . . . . . . . . Slashing . | . . . . . . . . Piercing . | . . . . . . . . Highest Corruption 6 | . . . . . 3 . 6 Average Corruption 3 | . . . . . 2 . 4 Corruption Purged . | . . . . . . . . Corruption Blocked . | . . . . . . . . Effects 42 | . . . . . 1 . 41 Message Errors 6 | . . . . . . . 6 Matter Fused 10 | . . . . . . . 10 Heat Flow Errors 6 | . . . . . 1 . 5 Energy Discharges 2 | . . . . . . . 2 Parts Rejected 1 | . . . . . . . 1 Data Loss (minor) 5 | . . . . . . . 5 Data Loss (major) 4 | . . . . . . . 4 Weapon Failures 8 | . . . . . . . 8 Overload Shots . | . . . . . . . . Overflow Damage 77 | . . . . . . 22 55 Projectiles 64 | . . . . . . 22 42 Explosions 13 | . . . . . . . 13 Melee . | . . . . . . . . Knockbacks 10 | . . . . . . 3 7 Impact . | . . . . . . . . Kinetic 10 | . . . . . . 3 7 Secondary . | . . . . . . . . Self-Inflicted Damage . | . . . . . . . . Shots . | . . . . . . . . Rammed . | . . . . . . . . Targets Rammed 7 | . . . . . . . 7 Kicked 7 | . . . . . . . 7 Crushed . | . . . . . . . . Highest Temperature 331 | . 265 7 . 5 243 240 331 Average Temperature 105 | . 138 3 . 3 81 110 111 Received Heat Transfer 1588 | . 102 117 12 9 214 75 1059 Effects 5 | . 2 . . . 1 . 2 Energy Bleed 1 | . . . . . 1 . . Interference 4 | . 2 . . . . . 2 Siege Activations . | . . . . . . . . Martial Activations . | . . . . . . . . Shielding Activations . | . . . . . . . . Robots Disrupted . | . . . . . . . . Combat Hostiles . | . . . . . . . . Robots Corrupted . | . . . . . . . . Combat Hostiles . | . . . . . . . . Parts Fried 1 | . . . . . . 1 . Impact Corruptions . | . . . . . . . . Robots Melted . | . . . . . . . . Combat Hostiles . | . . . . . . . . Parts Melted 9 | . 1 3 . . 1 . 4 Heat Transferred 4500 | . 550 825 75 159 510 407 1974 Parts Sabotaged . | . . . . . . . . Parts Stolen . | . . . . . . . . Parts Stripped . | . . . . . . . . Power Chain Reactions . | . . . . . . . . Alert | -11 -10 -10 -10 -8 -8 -6 -5 ------- Run | Yrd Mat Min Sub Rec Scr Fac Fac Maximum Alert Level 2 | . . . . . . . 2 Low Security (%) 93 | 100 100 100 . 100 . 100 83 Level 1 . | . . . . . . . . Level 2 6 | . . . . . . . 15 Level 3 . | . . . . . . . . Level 4 . | . . . . . . . . Level 5 . | . . . . . . . . High Security . | . . . . . . . . Max Security . | . . . . . . . . Peak Influence 633 | . 44 100 . 25 . 106 633 Initial . | . . . . . . . . Average 52 | . 9 25 . 2 . 21 114 Influence Increases 2106 | . 61 211 35 90 . 210 1499 Destroy 0b10 Robot/C 1200 | . 40 160 20 60 . 140 780 Destroy 0b10 Robot/NC 75 | . 5 5 . 5 . 5 55 Destroy Leader 256 | . 12 30 . . . 42 172 Allied During Kill 10 | . . 1 . 9 . . . Successful Hack 36 | . 4 . . 16 . 4 12 Disable Machine 60 | . . . . . . . 60 Destroy Structure 124 | . . . . . . 4 120 Lose Combat Pursuer 345 | . . 15 15 . . 15 300 Influence Decreases 1473 | . 61 211 35 90 . 210 866 Time Decay 961 | . 61 190 35 72 . 210 393 Lost Part 311 | . . 10 . . . . 301 Lost Ally 29 | . . 11 . 18 . . . Purge Threat 172 | . . . . . . . 172 Squads Dispatched 13 | . 1 . . . . 2 10 Investigation . | . . . . . . . . Extermination 7 | . . . . . . 2 5 Reinforcement 6 | . 1 . . . . . 5 Assault . | . . . . . . . . Garrison . | . . . . . . . . Intercept . | . . . . . . . . Searches Triggered . | . . . . . . . . Construction Impeded 1 | . . . . . . . 1 Haulers Reinforced . | . . . . . . . . Active Scanning Responses . | . . . . . . . . Cargo Convoy Interrupts . | . . . . . . . . Stealth | -11 -10 -10 -10 -8 -8 -6 -5 --------- Run | Yrd Mat Min Sub Rec Scr Fac Fac Distress Signals 7 | . . . . 2 . 1 4 Communications Jammed . | . . . . . . . . Distress Signals . | . . . . . . . . Times Spotted 126 | . 2 10 2 5 11 11 85 Peak Tracking Total 13 | . 2 5 1 1 7 6 13 Tactical Retreats 13 | . . 1 1 . . 1 10 Traps | -11 -10 -10 -10 -8 -8 -6 -5 ------- Run | Yrd Mat Min Sub Rec Scr Fac Fac Traps Triggered 7 | . . . . . . . 7 Indirectly . | . . . . . . . . Trap Hack Attempts . | . . . . . . . . Triggered . | . . . . . . . . Disarmed . | . . . . . . . . Reprogrammed . | . . . . . . . . Reused . | . . . . . . . . Traps Extracted . | . . . . . . . . Installed . | . . . . . . . . Triggered . | . . . . . . . . Machines | -11 -10 -10 -10 -8 -8 -6 -5 ---------- Run | Yrd Mat Min Sub Rec Scr Fac Fac Machines Disabled 5 | . . . . . 1 . 4 Max in Single Turn 3 | . . . . . . . 3 Machines Repaired . | . . . . . . . . Machines Dismantled . | . . . . . . . . Machines Sabotaged . | . . . . . . . . Overloaded Fab Kills . | . . . . . . . . Hacking | -11 -10 -10 -10 -8 -8 -6 -5 --------- Run | Yrd Mat Min Sub Rec Scr Fac Fac Machines Accessed 19 | . 3 1 . 6 3 1 5 Terminals 14 | . 3 1 . 6 . 1 3 Fabricators . | . . . . . . . . Repair Stations . | . . . . . . . . Recycling Units . | . . . . . . . . Scanalyzers 2 | . . . . . . . 2 Garrison Access . | . . . . . . . . Total Hacks 44 | . 7 3 . 13 7 2 12 Successful 28 | . 4 . . 7 7 2 8 Failed 16 | . 3 3 . 6 . . 4 Catastrophic 2 | . . 2 . . . . . Database Lockouts . | . . . . . . . . Manual 25 | . 5 3 . 11 . 1 5 Terminals 34 | . 7 3 . 13 . 2 9 Fabricators . | . . . . . . . . Repair Stations . | . . . . . . . . Recycling Units . | . . . . . . . . Scanalyzers 3 | . . . . . . . 3 Garrison Access . | . . . . . . . . Terminal Hacks 16 | . 2 . . 2 7 1 4 Record 7 | . . . . . 7 . . Robot Analysis 1 | . . . . . . . 1 Prototype ID Bank 1 | . 1 . . . . . . Alert Level 1 | . . . . 1 . . . Unreport Threat 2 | . . . . . . . 2 Locate Traps 3 | . 1 . . . . 1 1 Zone Layout 1 | . . . . 1 . . . Fabricator Hacks . | . . . . . . . . Repair Station Hacks . | . . . . . . . . Recycling Unit Hacks . | . . . . . . . . Scanalyzer 2 | . . . . . . . 2 Retrieve Study 2 | . . . . . . . 2 Garrison Access Hacks . | . . . . . . . . Unauthorized Hacks 10 | . 2 . . 5 . 1 2 Terminals 10 | . 2 . . 5 . 1 2 Botnet 10 | . 2 . . 5 . 1 2 Fabricators . | . . . . . . . . Repair Stations . | . . . . . . . . Recycling Units . | . . . . . . . . Scanalyzers . | . . . . . . . . Garrison Access . | . . . . . . . . Data Cores Recovered . | . . . . . . . . Used . | . . . . . . . . Hacking Detections 10 | . 3 1 . 2 . . 4 Full Trace Events . | . . . . . . . . Feedback Events . | . . . . . . . . Feedback Blocked . | . . . . . . . . Robot Schematics Acquired . | . . . . . . . . Robots Built . | . . . . . . . . Authchips . | . . . . . . . . Time . | . . . . . . . . Total Robot Build Rating . | . . . . . . . . Part Schematics Acquired . | . . . . . . . . Parts Built . | . . . . . . . . Authchips . | . . . . . . . . Time . | . . . . . . . . Total Part Build Rating . | . . . . . . . . Part Studies Acquired 2 | . . . . . . . 2 Parts Repaired . | . . . . . . . . Time . | . . . . . . . . Parts Recycled . | . . . . . . . . Recycled Matter . | . . . . . . . . Retrieved Matter . | . . . . . . . . Retrieved Components . | . . . . . . . . Parts Scanalyzed . | . . . . . . . . Part Schematics Acquired . | . . . . . . . . Parts Damaged . | . . . . . . . . Bothacking | -11 -10 -10 -10 -8 -8 -6 -5 ------------ Run | Yrd Mat Min Sub Rec Scr Fac Fac Used RIF Installer . | . . . . . . . . Robots Hacked . | . . . . . . . . Non-combat . | . . . . . . . . Combat . | . . . . . . . . Robot Hacks Applied . | . . . . . . . . Relay Couplers Released . | . . . . . . . . Fabnet Peak Effective % . | . . . . . . . . Robots Rewired 6 | . . . . 6 . . . Allies Hacked . | . . . . . . . . Hacks Repelled . | . . . . . . . . Allies | -11 -10 -10 -10 -8 -8 -6 -5 -------- Run | Yrd Mat Min Sub Rec Scr Fac Fac Total Allies 7 | . . 1 . 6 . . . Largest Group 5 | . . 1 . 5 4 . . Highest-Rated Group 91 | . . 31 . 91 73 . . Highest-Rated Ally 31 | . . 31 . 27 27 . . Initial UFD Resources 27 | . . . . . . 23 27 Total Orders . | . . . . . . . . Ally Attacks 36 | . . 13 . 12 11 . . Total Damage 655 | . . 171 . 292 192 . . Kills 7 | . . 1 . 3 3 . . Allies Corrupted . | . . . . . . . . Allies Melted 4 | . . . . . 4 . . Intel | -11 -10 -10 -10 -8 -8 -6 -5 ------- Run | Yrd Mat Min Sub Rec Scr Fac Fac Active Infowar (turns) 4560 | . . . . . 1120 1140 2300 Optics 4560 | . . . . . 1120 1140 2300 Robot Analysis Total 1 | . . . . . . . 1 Derelict Logs Recovered 1 | . . 1 . . . . . Drone Launches . | . . . . . . . . Drone Recoveries . | . . . . . . . . Exploration | -11 -10 -10 -10 -8 -8 -6 -5 ------------- Run | Yrd Mat Min Sub Rec Scr Fac Fac Turns Passed 8003 | 60 346 833 220 1299 1796 1140 2309 Spaces Moved 4650 | 36 182 420 130 695 1090 620 1477 Core 132 | 6 . . . . 37 . 89 Treads 3489 | 30 182 420 130 695 1053 620 359 Legs 901 | . . . . . . . 901 Wheels . | . . . . . . . . Hover . | . . . . . . . . Flight 128 | . . . . . . . 128 Fastest Speed 40 | 50 160 160 160 160 50 166 40 Average Speed 146 | 148 160 160 160 160 156 167 117 Slowest Speed 400 | 160 160 160 160 160 170 170 400 Overloaded Moves . | . . . . . . . . Propulsion Burnouts . | . . . . . . . . Robots Hopped . | . . . . . . . . Potential Cave-ins . | . . . . . . . . Cave-ins Triggered . | . . . . . . . . Exploration Rate (%) 48 | 3 62 79 11 99 84 13 40 Regions Visited 7 Branch Regions 4 Pre-discovered Areas . | . . . . . . . . Known Exits Taken 1 | . . . . . 1 . . Unknown Exits Taken 6 | 1 1 1 1 1 . 1 . Scrap Searched 6 | . . 1 . . 5 . . Spaces Dug . | . . . . . . . . Terrain Destroyed 66 | . . . . . . 3 63 Melee . | . . . . . . . . Projectile 24 | . . . . . . 3 21 AOE 39 | . . . . . . . 39 Terrain Rammed . | . . . . . . . . Walls Destroyed . | . . . . . . . . Machines Disabled . | . . . . . . . . Actions | -11 -10 -10 -10 -8 -8 -6 -5 --------- Run | Yrd Mat Min Sub Rec Scr Fac Fac Total 5446 | 40 211 531 134 871 1153 689 1817 Wait 370 | . 11 85 1 83 22 20 148 Move 4643 | 35 181 419 129 694 1089 619 1477 Hop . | . . . . . . . . Pick Up 27 | . 4 1 . 2 7 5 8 Fast Attach 79 | 5 1 1 . 1 6 14 51 Attach 16 | . . . . . 5 4 7 Detach . | . . . . . . . . Swap 6 | . . . . 2 1 1 2 Drop 44 | . . . . 4 8 13 19 Fire 175 | . 14 25 4 6 15 13 98 Melee . | . . . . . . . . Ram . | . . . . . . . . Kick 7 | . . . . . . . 7 Crush . | . . . . . . . . Escape Stasis . | . . . . . . . . Rewire 79 | . . . . 79 . . . Trap . | . . . . . . . . Miscellaneous . | . . . . . . . . Route ------- -11/Scrapyard -10/Materials (discovered 3 exits: [*Mat] / *Min x2) -10/Mines (discovered 3 exits: [*Mat] / [*Exi] / [*Sub]) -10/Subcaves -8/Recycling (discovered 2 exits: *Fac / *Scr) -8/Scraptown (discovered 2 exits: *Fac x2) -6/Factory -5/Factory History --------- Turn | Location | Event 5 | -11/Scrapyard | Discovered new exit (range 16) 61 | -11/Scrapyard | Entered Materials 193 | -10/Materials | Discovered new exit (range 10) 224 | -10/Materials | Discovered new exit (range 16) 309 | -10/Materials | Build established: Mutant 351 | -10/Materials | Discovered new exit (range 5) 407 | -10/Materials | Entered Mines 434 | -10/Mines | Received a Mining Laser from a helpful Derelict 816 | -10/Mines | Found a hidden stash of uninstalled traps 835 | -10/Mines | Learned 2 Materials zone layouts 1159 | -10/Mines | Discovered new exit (range 11) 1196 | -10/Mines | Deemed a non-threat by the Exiles lab entrance 1196 | -10/Mines | Discovered new exit (range 5) 1221 | -10/Mines | Discovered new exit (range 13) 1240 | -10/Mines | Entered Subcaves 1271 | -10/Subcaves | Shifting Twisted Machinery released Mak. Light Armor Plating 1338 | -10/Subcaves | Discovered new exit (range 12) 1460 | -10/Subcaves | Entered Recycling 1461 | -8/Recycling | Joined Warlord attack on 0b10 via Recycling 1764 | -8/Recycling | Discovered new exit (range 16) 1947 | -8/Recycling | Scanned before Scraplab entrance 2665 | -8/Recycling | Build established: Commander-Mutant 2728 | -8/Recycling | Entered Scraplab 2749 | -8/Recycling | Discovered new exit (range 2) 2759 | -8/Recycling | Entered Scraptown 2759 | -8/Scraptown | Accompanied by 4 allies 3061 | -8/Scraptown | Visited Shadow of the Wyrm 3096 | -8/Scraptown | Visited Assassins FH 3115 | -8/Scraptown | Build established: Scavenger-Mutant 3117 | -8/Scraptown | Visited Red Mages 3178 | -8/Scraptown | Visited Awakened 3423 | -8/Scraptown | Visited Bundlers 3510 | -8/Scraptown | Visited Fellowship of the Rings 3531 | -8/Scraptown | Visited Cyclists 3557 | -8/Scraptown | Visited UFD Registry 3557 | -8/Scraptown | Registered with UFD as "Shockhacker" 3587 | -8/Scraptown | Entered Cyclist Reading Room 3662 | -8/Scraptown | Visited Scrapoid Research Area 3685 | -8/Scraptown | Visited DA-N13 Charitable Foundation 3707 | -8/Scraptown | Visited A0-MCA Data Center 3717 | -8/Scraptown | Given a B+ rating by A0-MCA 3725 | -8/Scraptown | Found A0-MCA's Component Scanner 3793 | -8/Scraptown | Build established: Commander-Mutant 3855 | -8/Scraptown | Visited Scrapoid Pod Storage 3878 | -8/Scraptown | Visited Abandonware Association 3898 | -8/Scraptown | Learned abandonware demo "SHUTEYE.EXE" 3942 | -8/Scraptown | Visited Scrap Suit Storage 3999 | -8/Scraptown | Visited Observation Area 4070 | -8/Scraptown | Visited LU-1G1's Boring Crew 4223 | -8/Scraptown | Met Optimus 4223 | -8/Scraptown | Accepted into 0bPrime 4297 | -8/Scraptown | Visited Derelict Rescue Squad 4307 | -8/Scraptown | Found DRS Beacon 4338 | -8/Scraptown | Civil war broke out across Scraptown 4362 | -8/Scraptown | Core integrity fell below 50% 4399 | -8/Scraptown | Core integrity fell below 20% 4416 | -8/Scraptown | Identified exit to Factory 4426 | -8/Scraptown | Lost 5 parts (1p1n1u2w) 4436 | -8/Scraptown | Lost 12 allies 4555 | -8/Scraptown | Entered Factory 4555 | -6/Factory | Evolved 8 slots: Power x1, Propulsion x2, Utility x3, Weapon x2 4811 | -6/Factory | Discovered new exit (range 14) 4888 | -6/Factory | Build established: Mutant 5206 | -6/Factory | Build established: Scavenger-Gunner 5695 | -6/Factory | Entered another Factory area 5695 | -5/Factory | Evolved 2 slots: Utility x2 6412 | -5/Factory | Lost 6 parts (1p2n3w) 6680 | -5/Factory | Lost 7 parts (1p1n1u4w) 6878 | -5/Factory | Core integrity fell below 50% 7109 | -5/Factory | Spotted B-75 Beast 7598 | -5/Factory | Core integrity fell below 20% 7664 | -5/Factory | Lost 9 parts (2p2n5w) 7675 | -5/Factory | Destroyed 8 combat bots 8004 | -5/Factory | Destroyed by S-27 Virus with Autogun Last Messages --------------- Acquired 70 matter. Acquired 23 matter. System corrupted: Heat flow error (+160). Connecting with Terminal... System corrupted: Substantial component data lost. Adv. Targeting Computer destroyed. Slug penetrates Wall. Slug penetrates S-27 Virus. S-27 Virus destroyed. Penetrated by Slug. Adv. Cooling System destroyed. Penetrated by Slug. K-01 Serf collects debris. System corrupted: Hvy. Laser failed to cycle. Slug penetrates S-27 Virus. S-27 Virus destroyed. Switching to secondary target: S-27 Virus. Acquired 19 matter. Penetrated by Slug. Map ----- +----------------------------------------------------+ | ?????????????????????????????????# """"" # | | ?????????????????????????????????# """"" # | | ?????????????????????????????????# """ + | | ?????????????????????????????????# # | | ?????????????????????????????????# """"" # | | ?????????????????????????????????# """"" # | | ?????????????????????????????????# """ # | | ?????????????????????????????????# # | | ?????????????????????????????????# * # | | ?????????????????????????????????#########+#### | | ?????????????????????????????????????????# #??# | | ?????????????????????????????????????????# #??# | | ???????????????????????#################?# #??# | | ???????????????????????# """"" """"""" ### #### | | ???????????????????????# ""T"" """"""" # | | ???????????????????????# """"""" # | | ???????????????????????# """"""" # | | ???????????????????????# + | | ???????????????????????# # | | ???????????????????????# # ##### | | ???????????????????????######+########## ## "" | | ????????????????????????????# #???????# # "" | | ????????????????????????????# ######### A # "" | | ????????????????????????????# # "" | | ???????????????????# ###### h + | | ???????????????????# =%[@*s s h # | | ???????????????????# *####;########+## # [ | | ??????????????????????????? ????????# # | | ???????????????????????????? ???????### ###### | | ???????????????????????#???? ????????# % #????? | | ???????????????????????#" ? ??????# #????? | | ???????????????????????#" ?????# ###### | | ???????????????????????#" ??### ### | | ???????????????????????#" ##% #! | | ???????????????????????#"""" ###########| %#== | | ?????????????????????????# # % !+ ! | | ??????????????????????????????########## #[ | | ???????????????????????????????????????# # * | | ???????????????????????????????????????### ###!= | | ?????????????????????????????????????????# #=##### | | ????????????????????????????????????????## ####### | | ????????????????????????????????????????## !% | | ????????????????????????????????????????##+### ### | | ???????????????????????????????????????? ###? | | ??????????????????????????????????????""" """ #??? | | ????????????????????????????????????# """ """ #??? | | ????????????????????????????????????# """ """ #??? | | ????????????????????????????????????# "" "" +?? | | ????????????????????????????????????# "" "" #### | | ????????????????????????????????????# #??? | +----------------------------------------------------+ Best States ------------- Heat Dissipation 90 Energy Generation 34 Energy Capacity 360 Matter Stores 300 Matter Capacity 300 Sight Range 22 Terrain Scan Density 10 Armor Coverage 225 Evasion (%) 62 Targeting Accuracy 24 Recoil Reduction 4 Item Schematics ----------------- None Robot Schematics ------------------ None Fabricated ------------ Nothing Repaired ---------- Nothing Studied --------- Imp. Deuterium Engine | -5/Factory | Hacked Arm. Treads | -5/Factory | Hacked Alien Tech Used ----------------- None Achievements -------------- Uncivil War Wiki Contributor Challenges ------------ None Game ------ Seed SwordGuidanceMultitool Manual? 0 Play Time 01:02:40 Cumulative 56.2 hours Start 2026.07.14 @ 17:30:37 End 2026.07.14 @ 18:36:38 Sessions 1 Manual Loads 0 Difficulty Rogue Special Mode None Game No. 59 Rogue 59 Adventurer 0 Explorer 0 Win Type - Total 1 Types 1/0/0/0/0/0/0/0/0/0 Lore% 56 Gallery% 39 Achievement% 36 Wizard Run 0 Options --------- Layout 1 ASCII 0 Keyboard 0 Movement Mouse Keybinds 0 Fullscreen 1 Font 24/X11 Map View 50x35 Zoom Use 0% Tactical HUD 0 Map Filters NONE Filters NONE Steam 1 RUN: ed635faa-bbd6-4789-a306-fda499a6bff8